bitfinex-derivatives/quotes_ETHF0:USTF0_20251223
["timestamp","ask_amount","ask_price","bid_price","bid_amount"]
[1766499003462,3.395,2947.1,2946.2,3.395]
[1766499005770,0.00937863,2947.4,2946.2,3.395]
[1766499005771,3.40437863,2947.4,2946.2,3.395]
[1766499007962,3.40437863,2947.4,2946.3,5.937]
[1766499008170,3.40437863,2947.4,2946.4,3.395]
[1766499008871,3.40437863,2947.4,2946.5,3.395]
[1766499009275,3.40437863,2947.4,2946.0,0.00509001]
[1766499009476,3.40437863,2947.4,2946.3,3.395]
[1766499010777,3.40437863,2947.4,2946.0,0.00509001]
[1766499010979,3.40437863,2947.4,2946.1,8.906]
[1766499014670,3.40437863,2947.4,2946.1,11.34026472]
[1766499015373,1.81499936,2947.2,2946.0,0.00509001]
[1766499015577,3.394,2947.1,2946.1,3.394]
[1766499015776,0.00937863,2947.4,2946.1,3.394]
[1766499016080,0.00937863,2947.4,2946.2,1.81499936]
[1766499016081,3.40337863,2947.4,2946.2,1.81499936]
[1766499016982,3.40337863,2947.4,2946.1,3.394]
[1766499017479,3.40337863,2947.4,2946.2,3.394]
[1766499017679,3.40337863,2947.4,2946.0,0.00509001]
[1766499017880,3.40337863,2947.4,2946.1,3.394]
[1766499018487,3.40337863,2947.4,2946.0,0.00509001]
[1766499018684,1.81499936,2947.2,2946.1,3.394]
[1766499018885,3.394,2947.1,2946.1,3.394]
[1766499025093,0.16973,2947.3,2946.1,3.394]
[1766499025295,3.395,2947.2,2946.1,3.394]
[1766499026591,3.395,2947.1,2946.1,3.394]
[1766499026990,0.00937863,2947.4,2946.1,3.394]
[1766499027192,3.395,2947.3,2946.3,2.43426472]
[1766499027497,42.78468936,2948.0,2946.0,0.00509001]
[1766499027498,0.16969,2948.0,2946.5,2.43426472]
[1766499027703,3.395,2947.8,2946.6,3.395]
[1766499028700,0.00509001,2947.5,2946.6,3.395]
[1766499028899,0.00509001,2947.5,2946.7,3.395]
[1766499033200,3.39922301,2947.8,2946.7,3.395]
[1766499034197,0.00509001,2947.5,2946.7,3.394]
[1766499034392,3.39922301,2947.8,2946.7,3.394]
[1766499034989,3.39922301,2947.8,2946.8,9.392]
[1766499035195,3.39922301,2947.8,2946.4,2.43426472]
[1766499035399,0.00509001,2947.4,2946.5,7.168]
[1766499035594,1.82008937,2947.4,2946.1,2.43426472]
[1766499035804,1.82008937,2947.4,2946.2,9.632]
[1766499036100,1.82008937,2947.4,2946.3,3.394]
[1766499036295,1.82008937,2947.4,2946.0,0.00509001]
[1766499036500,1.82008937,2947.4,2946.1,3.394]
[1766499037003,1.82008937,2947.4,2946.0,0.00509001]
[1766499037305,1.82008937,2947.4,2946.1,3.394]
[1766499037891,1.98980937,2947.4,2946.0,0.00509001]
[1766499038299,1.81499936,2947.1,2946.1,3.394]
[1766499038508,3.394,2947.0,2946.1,3.394]
[1766499040006,3.394,2947.0,2946.0,0.00509001]
[1766499040401,9.287,2947.0,2945.9,0.02499769]
[1766499040600,9.287,2947.0,2945.2,0.00438722]
[1766499040601,1.81499936,2946.1,2945.2,0.00438722]
[1766499040912,3.394,2946.0,2945.2,0.00438722]
[1766499041504,0.00509001,2945.9,2945.3,0.00509001]
[1766499043705,0.00509001,2945.9,2944.9,3.395]
[1766499044595,0.00509001,2945.9,2945.1,0.00509001]
[1766499048901,1.81499936,2945.8,2944.9,0.00322466]
[1766499049105,1.81499936,2945.5,2944.9,0.00322466]
[1766499049401,3.395,2945.4,2944.7,3.395]
[1766499050000,3.395,2945.4,2944.8,0.00509001]
[1766499050209,3.395,2945.4,2944.8,0.00913337]
[1766499053103,0.00242184,2945.5,2944.8,0.00913337]
[1766499053307,3.39742184,2945.5,2944.8,0.00913337]
[1766499054905,3.62999872,2944.9,2943.1,2.43426472]
[1766499055106,1.98489936,2944.4,2943.0,3.396]
[1766499055305,3.396,2944.3,2943.1,3.396]
[1766499055512,3.396,2944.3,2943.2,3.396]
[1766499055707,3.396,2944.3,2943.3,3.396]
[1766499056010,3.396,2944.5,2943.5,0.00509001]
[1766499057010,0.00509001,2944.3,2943.5,0.00509001]
[1766499057608,5.21099936,2944.2,2943.5,0.00509001]
[1766499057908,3.396,2944.2,2943.5,0.00509001]
[1766499058108,3.396,2944.2,2943.3,0.00418889]
[1766499058311,5.896,2944.1,2941.9,34.13504]
[1766499058501,5.896,2944.1,2941.9,0.17004]
[1766499058706,5.896,2944.1,2942.0,21.96033626]
[1766499058908,5.896,2944.1,2942.0,18.124]
[1766499059212,5.896,2944.1,2942.8,0.00509001]
[1766499059415,5.896,2944.1,2942.8,3.40389286]
[1766499059610,5.896,2944.1,2942.8,0.00789286]
[1766499059804,5.896,2944.1,2942.8,3.40389286]
[1766499061411,6.07199001,2944.3,2942.8,3.40389286]
[1766499061614,3.397,2944.0,2942.8,3.40389286]
[1766499061819,0.00509001,2944.3,2942.8,3.40389286]
[1766499062109,0.16987,2944.9,2942.9,5.79144555]
[1766499062110,3.397,2944.7,2942.9,5.79144555]
[1766499062312,3.397,2944.7,2943.0,8.492]
[1766499062623,3.397,2944.7,2943.1,8.818]
[1766499063113,40.8,2945.0,2943.1,8.818]
[1766499063316,3.397,2945.2,2943.3,2.06158158]
[1766499063519,3.397,2945.2,2943.4,3.397]
[1766499063705,0.00242184,2945.5,2943.4,7.30569049]
[1766499064104,0.00509001,2944.7,2943.4,7.30569049]
[1766499064407,3.397,2945.4,2943.4,7.30569049]
[1766499064811,0.17225184,2945.5,2943.4,7.30569049]
[1766499064812,3.56925184,2945.5,2943.4,7.30569049]
[1766499065212,0.00509001,2944.7,2943.4,7.30569049]
[1766499065817,3.56925184,2945.5,2943.4,7.30569049]
[1766499066807,0.00509001,2944.7,2943.4,7.30569049]
[1766499067005,3.56925184,2945.5,2943.4,7.30569049]
[1766499067209,0.17225184,2945.5,2943.4,7.30569049]
[1766499067409,3.39942184,2945.5,2943.4,7.30569049]
[1766499067915,0.00339332,2944.7,2943.4,7.30569049]
[1766499068418,0.00339332,2944.7,2943.4,9.73995521]
[1766499068609,0.00339332,2944.7,2943.4,9.90990521]
[1766499069012,0.00242184,2945.5,2943.7,2.06158158]
[1766499069213,3.39942184,2945.5,2943.8,18.127]
[1766499069415,3.39942184,2945.5,2943.8,21.95910853]
[1766499069620,0.00242184,2945.5,2944.1,2.06158158]
[1766499069819,0.00242184,2945.5,2944.2,3.397]
[1766499070010,0.00242184,2945.5,2944.6,0.00509001]
[1766499070213,0.00242184,2945.5,2944.7,9.634]
[1766499072320,0.00242184,2945.5,2944.8,9.633]
[1766499074515,0.00242184,2945.5,2944.6,0.00509001]
[1766499074916,3.39942184,2945.5,2944.6,0.00509001]
[1766499075114,3.39942184,2945.5,2944.7,3.397]
[1766499075322,3.39942184,2945.5,2944.6,0.00509001]
[1766499075722,3.39942184,2945.5,2944.7,3.397]
[1766499075924,3.39942184,2945.5,2944.6,0.00509001]
[1766499076124,3.39942184,2945.5,2944.6,3.40209001]
[1766499076322,3.39942184,2945.5,2944.6,3.40109001]
[1766499077721,0.00242184,2945.5,2944.6,3.40109001]
[1766499079316,0.16978,2946.3,2944.6,3.40109001]
[1766499079519,3.396,2946.2,2944.6,3.40109001]
[1766499079720,3.396,2946.1,2944.6,3.40109001]
[1766499080320,3.40036544,2946.1,2944.6,3.40109001]
[1766499080520,33.969,2946.9,2944.6,3.40109001]
[1766499080521,1.81617151,2949.0,2946.0,9.95342788]
[1766499080728,0.16959,2949.7,2947.2,0.00509001]
[1766499080921,0.27169279,2949.2,2947.3,14.881]
[1766499081427,3.396,2949.1,2947.3,0.00393695]
[1766499081630,3.396,2949.1,2947.4,3.401]
[1766499081821,3.55,2949.0,2947.3,0.00393695]
[1766499082222,3.55,2949.0,2947.4,3.401]
[1766499084128,3.55,2949.0,2947.3,0.00393695]
[1766499084328,3.55,2949.0,2947.4,5.445]
[1766499084529,0.27169279,2948.6,2947.4,5.445]
[1766499084729,3.395,2948.5,2947.4,5.445]
[1766499086634,203.814,2952.5,2947.4,8.841]
[1766499086835,3.395,2951.6,2949.5,2.06158158]
[1766499087040,3.395,2951.6,2949.6,14.74759]
[1766499087232,44.195,2951.6,2949.9,2.06158158]
[1766499087532,3.395,2951.6,2950.0,9.625]
[1766499087838,40.8,2951.5,2950.1,9.624]
[1766499088040,3.39757771,2951.6,2950.1,9.624]
[1766499089938,3.39757771,2951.6,2950.2,9.621]
[1766499090130,3.39757771,2951.6,2950.3,9.621]
[1766499090935,0.00257771,2951.6,2950.3,9.621]
[1766499091332,0.00257771,2951.6,2950.0,0.00358187]
[1766499091538,3.393,2951.5,2950.1,3.498]
[1766499091942,5.45458158,2951.5,2950.2,3.393]
[1766499092346,5.45458158,2951.5,2950.0,3.75158187]
[1766499092347,5.45458158,2951.5,2950.3,3.393]
[1766499092646,5.45458158,2951.5,2950.0,4.60658187]
[1766499092647,5.45458158,2951.5,2950.0,0.00358187]
[1766499092834,5.45458158,2951.5,2950.1,3.393]
[1766499093844,5.45458158,2951.5,2950.0,0.00358187]
[1766499094241,5.45458158,2951.5,2950.1,3.392]
[1766499094642,3.393,2951.5,2950.1,3.392]
[1766499095339,9.295,2951.4,2950.1,3.392]
[1766499096342,9.295,2951.4,2950.1,2.853]
[1766499096540,9.295,2951.4,2950.2,3.392]
[1766499096736,9.295,2951.3,2950.2,3.392]
[1766499097538,8.48257771,2951.6,2950.2,3.392]
[1766499097539,5.903,2951.5,2950.2,3.392]
[1766499097740,3.392,2951.4,2950.2,3.392]
[1766499099243,3.392,2951.4,2950.3,3.391]
[1766499099542,3.392,2951.4,2950.0,6.22458187]
[1766499099744,3.56149,2951.4,2950.1,3.391]
[1766499103246,0.16951,2951.1,2950.2,4.707]
[1766499103449,0.16951,2951.1,2950.0,0.00358187]
[1766499103450,3.56051,2951.1,2950.0,0.00358187]
[1766499103643,3.391,2951.1,2950.0,0.00358187]
[1766499103838,0.16952,2950.9,2950.1,3.391]
[1766499104040,3.56053,2950.8,2950.1,3.391]
[1766499106153,3.56053,2950.8,2950.0,0.00358187]
[1766499106343,3.56053,2950.8,2950.0,3.39458187]
[1766499106751,0.16953,2950.8,2950.0,3.39458187]
[1766499106954,0.16953,2950.8,2950.0,0.00358187]
[1766499107148,0.16953,2950.8,2949.3,0.00509001]
[1766499107344,0.00257771,2951.6,2949.4,11.873]
[1766499107548,0.00257771,2951.6,2949.5,2.06158158]
[1766499107549,0.16951,2951.1,2949.5,2.06158158]
[1766499107749,0.16953,2950.8,2949.6,18.085]
[1766499107949,0.16953,2950.8,2949.3,0.00509001]
[1766499108149,0.16953,2950.8,2949.7,6.218]
[1766499108353,0.16953,2950.8,2949.8,3.39]
[1766499108554,0.16953,2950.8,2949.7,6.218]
[1766499108751,0.16953,2950.8,2949.8,3.39]
[1766499110458,0.16953,2950.8,2949.9,9.607]
[1766499110659,0.16953,2950.8,2949.3,0.00943554]
[1766499110858,0.16953,2950.8,2949.4,9.607]
[1766499112762,0.16953,2950.7,2949.5,9.61]
[1766499112962,3.39,2950.6,2949.5,9.61]
[1766499113858,0.16949,2951.4,2949.5,9.61]
[1766499114064,3.39,2951.1,2949.5,9.61]
[1766499114458,3.39,2951.2,2949.5,9.61]
[1766499115458,3.39,2951.2,2949.8,2.06158158]
[1766499115653,3.39,2951.2,2949.9,3.39]
[1766499115859,0.16949,2951.4,2950.0,6.22]
[1766499116158,0.16949,2951.4,2950.1,8.477]
[1766499116353,0.16949,2951.4,2950.2,3.39]
[1766499117356,3.39,2951.5,2950.2,3.39]
[1766499117959,0.00257771,2951.6,2950.2,3.39]
[1766499118154,0.00257771,2951.6,2949.8,2.06158158]
[1766499118359,0.00257771,2951.6,2949.9,51.991]
[1766499119061,5.60449,2951.5,2950.0,3.39]
[1766499119262,0.81006804,2951.4,2950.0,3.39]
[1766499119657,3.39,2951.3,2950.0,3.39]
[1766499121464,3.39,2951.3,2949.9,1.80984532]
[1766499121656,3.39,2951.3,2950.0,13.058]
[1766499122864,3.39,2951.3,2949.6,0.16959]
[1766499123059,3.39,2951.3,2949.6,3.39]
[1766499123060,0.80979035,2951.2,2949.6,3.39]
[1766499123464,41.60979035,2951.2,2949.6,3.39]
[1766499123670,3.39,2951.1,2949.6,3.39]
[1766499126356,3.39,2951.1,2949.7,3.885]
[1766499126562,3.39,2951.1,2949.8,3.39]
[1766499129360,3.39,2951.1,2949.3,4.24893364]
[1766499129567,1.80984532,2951.0,2949.4,6.042]
[1766499130365,0.16951,2951.0,2949.5,6.219]
[1766499130565,0.16951,2951.0,2949.6,3.39]
[1766499130766,0.16951,2951.0,2949.3,0.00943554]
[1766499131067,0.16951,2951.0,2949.4,5.94]
[1766499131271,0.16952,2950.9,2949.4,5.94]
[1766499131468,3.55768773,2950.8,2949.3,0.00943554]
[1766499131673,3.55768773,2950.8,2949.4,7.585]
[1766499132574,9.47468773,2950.8,2949.4,7.585]
[1766499133366,0.16953,2950.7,2949.4,7.585]
[1766499133568,0.16954,2950.6,2949.5,6.218]
[1766499133768,0.16954,2950.6,2949.5,9.608]
[1766499135066,3.39,2950.5,2949.3,0.00943554]
[1766499135263,3.39,2950.5,2949.4,3.39]
[1766499135463,0.16955,2950.4,2949.3,0.00943554]
[1766499135662,5.919,2950.3,2949.3,0.00943554]
[1766499135863,3.39,2950.2,2949.3,3.39943554]
[1766499136068,3.55956,2950.2,2949.3,3.39943554]
[1766499136269,0.16957,2950.1,2949.3,3.39943554]
[1766499136667,3.39,2950.2,2948.6,2.42965278]
[1766499136868,0.16958,2949.9,2948.7,5.554]
[1766499137070,3.39,2949.8,2948.6,6.218]
[1766499137266,3.39,2949.8,2948.8,3.39]
[1766499137868,0.00509001,2949.6,2949.0,0.00509001]
[1766499138177,3.39,2949.5,2948.8,0.00403579]
[1766499138477,0.00421991,2949.5,2948.8,0.00403579]
[1766499139077,0.00421991,2949.5,2948.9,0.00509001]
[1766499140171,0.00421991,2949.5,2948.8,0.00403579]
[1766499140378,1.97945532,2949.4,2948.4,3.39]
[1766499140574,3.39,2949.3,2948.3,3.39]
[1766499140774,9.47961,2949.3,2948.2,2.42965278]
[1766499140968,9.47961,2949.3,2948.3,3.391]
[1766499141171,9.47961,2949.3,2948.5,0.00509001]
[1766499141481,0.16964,2948.8,2948.3,0.00264918]
[1766499141676,0.16964,2948.8,2948.1,3.391]
[1766499142077,3.391,2949.0,2948.1,3.391]
[1766499142375,3.391,2949.0,2948.3,0.00509001]
[1766499142581,0.16961,2949.4,2948.4,3.391]
[1766499142969,0.16961,2949.4,2948.4,8.817]
[1766499144578,0.00421991,2949.5,2948.4,8.817]
[1766499145681,0.00421991,2949.5,2948.4,11.24665278]
[1766499146581,0.00421991,2949.5,2948.5,2.42965278]
[1766499147092,0.00421991,2949.5,2948.6,9.609]
[1766499148277,0.00421991,2949.5,2948.3,1.81833851]
[1766499148278,0.00421991,2949.5,2948.3,0.00849319]
[1766499148781,0.00421991,2949.5,2948.4,5.107]
[1766499150685,3.39521991,2949.5,2948.3,0.00849319]
[1766499150981,3.39521991,2949.5,2948.4,9.61]
[1766499153183,3.39521991,2949.5,2948.3,0.00849319]
[1766499153485,0.16961,2949.4,2948.4,3.889]
[1766499155079,0.16961,2949.4,2948.3,0.00849319]
[1766499155275,0.16961,2949.3,2948.4,4.074]
[1766499155481,3.56062,2949.2,2948.3,0.00849319]
[1766499155683,3.56062,2949.2,2948.4,3.391]
[1766499155981,3.56062,2949.2,2948.5,3.391]
[1766499156988,0.16962,2949.2,2948.5,3.391]
[1766499157888,3.392,2949.4,2948.3,0.00849319]
[1766499158188,0.16962,2949.2,2948.4,0.494]
[1766499158388,0.16962,2949.2,2948.4,3.886]
[1766499158775,0.16962,2949.2,2948.3,0.00849319]
[1766499158987,0.16962,2949.2,2948.4,4.247]
[1766499160588,0.16962,2949.2,2948.3,0.00849319]
[1766499160888,0.16962,2949.2,2948.3,0.50049319]
[1766499161089,0.16962,2949.2,2948.4,3.392]
[1766499161791,5.37146532,2949.1,2948.3,0.00849319]
[1766499161982,3.56162,2949.1,2948.3,3.40049319]
[1766499162186,0.16963,2949.0,2948.2,3.392]
[1766499163083,0.16963,2949.0,2948.2,3.39580548]
[1766499163291,0.16963,2949.0,2948.3,0.00509001]
[1766499164893,3.56163,2949.0,2948.3,0.00509001]
[1766499166694,3.56163,2949.0,2948.2,3.39580548]
[1766499166892,3.56163,2949.0,2948.2,0.14080548]
[1766499167092,3.56163,2949.0,2948.1,3.392]
[1766499167395,3.56163,2949.0,2947.7,3.392]
[1766499167396,0.16965,2948.6,2947.7,3.392]
[1766499167597,3.56166,2948.5,2947.8,3.392]
[1766499167789,3.56166,2948.5,2947.9,0.00339332]
[1766499168094,3.56166,2948.5,2947.9,0.00666842]
[1766499168489,40.8,2949.4,2948.0,3.392]
[1766499168688,9.314,2949.3,2948.0,3.392]
[1766499169088,1.80984532,2949.2,2948.0,3.392]
[1766499169284,0.16964,2948.9,2947.9,0.00666842]
[1766499169494,3.392,2948.8,2948.0,3.392]
[1766499169696,3.392,2949.0,2947.9,0.00666842]
[1766499169897,3.392,2949.0,2948.0,3.392]
[1766499170190,3.392,2949.0,2947.9,0.00666842]
[1766499170383,3.392,2949.0,2948.0,3.392]
[1766499170990,0.16964,2948.9,2948.0,3.392]
[1766499172296,3.56164,2948.9,2948.0,3.392]
[1766499172700,3.56164,2948.9,2947.9,0.00666842]
[1766499172900,3.56164,2948.9,2947.9,0.60366842]
[1766499173092,3.56164,2948.9,2948.0,3.392]
[1766499173699,3.56164,2948.9,2947.9,0.00666842]
[1766499173899,3.56164,2948.9,2948.0,3.392]
[1766499174989,0.16964,2948.9,2948.0,3.392]
[1766499175198,3.56164,2948.9,2948.0,3.392]
[1766499175997,0.16964,2948.9,2948.0,3.392]
[1766499176496,0.16964,2948.9,2947.9,0.00666842]
[1766499176697,0.16964,2948.9,2948.0,9.608]
[1766499178601,3.392,2949.0,2948.0,9.608]
[1766499179800,3.392,2949.0,2948.0,12.03765278]
[1766499180897,3.392,2949.0,2948.1,6.215]
[1766499181111,3.392,2949.0,2948.2,3.392]
[1766499181806,3.392,2949.0,2947.9,0.00666842]
[1766499182003,3.392,2949.0,2948.0,3.392]
[1766499183507,3.392,2949.0,2947.9,0.00666842]
[1766499184005,3.56163,2949.0,2947.8,3.392]
[1766499184205,3.56163,2949.0,2947.2,2.42965278]
[1766499184406,3.56163,2949.0,2947.3,8.249]
[1766499184913,0.16965,2948.7,2947.3,8.249]
[1766499185108,3.392,2948.6,2947.3,8.25226794]
[1766499187110,3.392,2948.6,2947.3,0.00326794]
[1766499187308,0.16965,2948.7,2947.4,3.392]
[1766499187514,8.353,2948.6,2947.4,3.392]
[1766499187714,0.16961,2949.4,2947.4,3.392]
[1766499188012,3.56161,2949.3,2947.4,2.42965278]
[1766499188209,3.56161,2949.3,2947.5,16.805]
[1766499188604,3.56161,2949.3,2947.6,6.214]
[1766499188605,0.16962,2949.2,2947.6,6.214]
[1766499188810,0.16962,2949.2,2947.6,9.607]
[1766499190414,0.16963,2949.0,2947.6,9.607]
[1766499190616,3.56264,2948.9,2947.6,9.607]
[1766499191816,3.56264,2948.9,2947.7,2.42965278]
[1766499193122,3.56264,2948.9,2947.8,9.607]
[1766499193918,3.56264,2948.9,2947.7,2.42965278]
[1766499194121,3.56264,2948.9,2947.8,3.393]
[1766499194122,0.16964,2948.8,2947.8,3.393]
[1766499194320,6.09664,2948.8,2947.8,3.393]
[1766499195616,6.09664,2948.8,2947.8,5.82265278]
[1766499195815,3.39721991,2949.5,2947.8,5.82265278]
[1766499196022,0.16961,2949.4,2948.0,2.42965278]
[1766499196317,0.16961,2949.4,2948.1,5.82265278]
[1766499196516,3.393,2949.3,2948.2,9.606]
[1766499198324,3.56261,2949.3,2948.2,9.606]
[1766499198525,3.56261,2949.3,2948.1,2.42965278]
[1766499198824,0.16963,2949.0,2947.4,2.42965278]
[1766499199127,3.392,2948.9,2947.5,14.532]
[1766499199727,3.56163,2948.9,2947.5,14.532]
[1766499199926,0.16964,2948.8,2947.6,9.605]
[1766499201031,0.16965,2948.7,2947.7,9.605]
[1766499201225,3.392,2948.6,2947.7,9.605]
[1766499205027,0.16965,2948.7,2947.7,9.605]
[1766499205331,3.393,2948.6,2947.7,9.605]
[1766499206832,0.16965,2948.7,2947.7,9.605]
[1766499207033,3.56265,2948.7,2947.7,9.605]
[1766499207221,3.56265,2948.7,2947.3,0.00326794]
[1766499207425,3.56265,2948.7,2947.4,9.605]
[1766499208329,3.56265,2948.7,2947.3,0.00326794]
[1766499208528,3.56265,2948.7,2947.4,9.605]
[1766499208831,3.56265,2948.7,2947.6,2.42965278]
[1766499209333,3.56265,2948.7,2947.7,6.386]
[1766499209630,3.56265,2948.7,2947.6,2.42965278]
[1766499209932,3.56265,2948.7,2947.7,9.605]
[1766499210133,3.56265,2948.7,2947.8,3.393]
[1766499212934,3.56265,2948.7,2947.9,3.393]
[1766499213438,3.56265,2948.7,2947.6,2.42965278]
[1766499213639,3.56265,2948.7,2947.7,9.604]
[1766499214040,3.56265,2948.7,2947.6,2.42965278]
[1766499214239,3.56265,2948.7,2947.7,6.385]
[1766499221350,3.56265,2948.7,2947.7,8.81465278]
[1766499222340,0.16965,2948.7,2947.7,8.81465278]
[1766499222548,3.393,2949.2,2947.8,2.42965278]
[1766499222848,3.393,2949.2,2948.0,2.42965278]
[1766499223050,3.393,2949.2,2948.1,3.393]
[1766499223249,3.393,2949.2,2948.2,3.393]
[1766499223450,3.393,2949.2,2947.9,2.42965278]
[1766499223651,3.393,2949.2,2948.0,9.603]
[1766499223845,3.393,2949.2,2948.1,3.393]
[1766499224150,4.56785175,2949.2,2948.1,3.393]
[1766499224951,4.56785175,2949.2,2948.2,6.209]
[1766499225149,4.56785175,2949.2,2948.2,9.602]
[1766499225349,4.56785175,2949.2,2948.3,9.602]
[1766499227253,4.56785175,2949.2,2947.8,2.42965278]
[1766499227454,4.56785175,2949.2,2947.7,1.17485175]
[1766499227455,1.17485175,2949.0,2947.9,6.836]
[1766499227954,1.17485175,2948.8,2948.0,9.601]
[1766499228155,1.17485175,2949.0,2948.0,9.601]
[1766499228661,3.393,2949.2,2948.0,9.601]
[1766499228861,1.17485175,2949.0,2948.0,9.601]
[1766499229155,1.17485175,2949.0,2947.5,1.17485175]
[1766499229156,1.17485175,2949.0,2948.1,6.208]
[1766499229359,1.17485175,2948.5,2948.0,3.392]
[1766499230658,1.17485175,2948.7,2948.0,3.392]
[1766499231450,1.17485175,2948.7,2947.3,3.60777247]
[1766499232047,1.17485175,2948.7,2947.4,5.525]
[1766499233366,1.17485175,2948.7,2947.3,3.60777247]
[1766499233552,3.392,2948.9,2947.3,3.60777247]
[1766499233553,1.17485175,2948.5,2947.3,2.43292072]
[1766499233752,1.17485175,2948.5,2947.4,6.87]
[1766499234155,1.17485175,2948.5,2947.3,2.43292072]
[1766499234356,1.17485175,2948.5,2947.4,6.311]
[1766499234958,1.17485175,2948.5,2947.5,9.599]
[1766499236459,1.17485175,2948.5,2947.6,9.599]
[1766499236964,1.34450175,2948.7,2947.6,9.599]
[1766499239963,1.17525795,2948.5,2947.6,9.599]
[1766499240169,1.17525795,2948.5,2947.7,9.598]
[1766499240367,1.17525795,2948.5,2947.8,9.598]
[1766499240968,1.17525795,2948.5,2947.5,2.42965278]
[1766499241269,1.17525795,2948.5,2947.6,7.308]
[1766499241460,1.17525795,2948.5,2947.7,6.206]
[1766499241657,1.17525795,2948.5,2947.7,9.598]
[1766499241861,1.17525795,2948.5,2947.8,9.598]
[1766499242771,1.17525795,2948.5,2947.5,2.42965278]
[1766499242970,1.17525795,2948.5,2947.6,9.598]
[1766499243163,1.17525795,2948.3,2947.4,2.42965278]
[1766499243363,1.17525795,2948.3,2947.5,9.598]
[1766499243655,1.17525795,2948.3,2947.5,12.02765278]
[1766499245268,1.17525795,2948.5,2947.5,12.02765278]
[1766499245469,1.17525795,2948.1,2947.6,9.599]
[1766499245969,1.17525795,2948.3,2947.6,9.599]
[1766499252661,1.17525795,2947.8,2947.3,0.00326794]
[1766499252868,1.17525795,2947.5,2947.2,3.393]
[1766499253068,1.17525795,2947.5,2947.3,3.393]
[1766499253263,1.17525795,2947.5,2946.6,1.45928499]
[1766499253467,1.17525795,2947.5,2946.7,8.867]
[1766499253868,1.17525795,2947.5,2946.7,8.87074746]
[1766499255269,1.17525795,2947.7,2946.7,8.87074746]
[1766499256777,0.00509001,2947.8,2946.7,0.00374746]
[1766499256972,1.17525795,2947.5,2946.8,9.601]
[1766499257765,0.00509001,2947.8,2946.7,0.00374746]
[1766499257766,1.17525795,2947.3,2946.9,3.393]
[1766499257971,1.17900944,2947.3,2947.0,6.208]
[1766499258270,0.00375149,2947.3,2947.0,6.208]
[1766499258473,1.17900944,2947.3,2946.8,3.393]
[1766499259476,1.17900944,2947.3,2946.8,3.39650196]
[1766499260474,1.17525795,2947.1,2945.7,0.35972759]
[1766499260670,1.17525795,2947.1,2946.0,1.17525795]
[1766499260871,1.17525795,2947.1,2946.1,3.393]
[1766499261071,1.17525795,2947.1,2946.2,5.671]
[1766499261272,0.00375149,2947.3,2946.2,5.671]
[1766499261480,1.17525795,2947.2,2946.2,6.85060149]
[1766499262273,1.17525795,2947.2,2946.2,5.67534354]
[1766499262676,1.17525795,2947.2,2946.3,9.601]
[1766499264586,1.17525795,2947.2,2946.2,0.00434354]
[1766499264880,1.17525795,2947.0,2946.2,0.00434354]
[1766499265078,1.17525795,2947.2,2946.3,4.124]
[1766499265686,1.17525795,2947.2,2946.2,0.00434354]
[1766499265884,1.17525795,2947.2,2946.3,5.062]
[1766499268177,1.17525795,2947.2,2946.4,6.208]
[1766499268376,1.17525795,2947.2,2946.5,3.394]
[1766499269278,1.17525795,2947.2,2946.2,0.00434354]
[1766499269485,1.17525795,2947.2,2946.3,9.601]
[1766499270482,1.17525795,2947.2,2946.2,0.00434354]
[1766499270679,1.17525795,2947.0,2946.4,6.207]
[1766499271779,1.17525795,2947.2,2946.4,6.207]
[1766499272982,3.394,2947.1,2946.2,0.00434354]
[1766499273189,1.17525795,2946.8,2946.0,3.394]
[1766499273486,4.56925795,2946.8,2946.0,3.394]
[1766499274086,1.17525795,2946.6,2946.0,3.39752375]
[1766499275089,4.56925795,2946.8,2946.0,3.39752375]
[1766499275491,4.56925795,2946.8,2946.0,0.00352375]
[1766499275691,4.56925795,2946.8,2946.0,3.39752375]
[1766499276890,1.17525795,2946.6,2946.0,0.00352375]
[1766499277091,1.17525795,2946.6,2946.0,3.39752375]
[1766499277790,4.56925795,2946.6,2946.0,3.39752375]
[1766499278687,4.56925795,2946.6,2946.0,0.00352375]
[1766499279682,4.56925795,2946.6,2945.9,3.394]
[1766499280692,4.56925795,2946.6,2945.9,3.39820035]
[1766499282789,1.17525795,2946.1,2944.6,1.48549745]
[1766499282995,1.17525795,2945.9,2944.8,1.17525795]
[1766499283890,1.17525795,2945.9,2944.8,1.17811827]
[1766499284092,0.00509001,2945.6,2945.1,0.00509001]
[1766499284293,1.17525795,2945.9,2945.2,9.601]
[1766499284596,1.17525795,2946.1,2945.1,0.00509001]
[1766499284787,1.17525795,2946.1,2945.2,9.601]
[1766499285394,0.00509001,2945.9,2945.2,9.601]
[1766499288793,0.00509001,2945.9,2945.2,6.206]
[1766499289099,0.00509001,2945.9,2945.3,3.395]
[1766499289894,3.394,2946.3,2945.3,3.395]
[1766499290198,4.56925795,2946.3,2945.3,3.395]
[1766499290998,0.00509001,2946.1,2945.3,3.395]
[1766499291700,3.394,2946.3,2945.5,1.17525795]
[1766499291897,1.17525795,2946.2,2945.4,3.395]
[1766499292089,1.17525795,2946.0,2945.4,3.395]
[1766499292405,3.395,2946.1,2945.4,3.395]
[1766499292592,0.00509001,2946.0,2945.4,3.395]
[1766499294213,1.17525795,2946.4,2945.4,4.57025795]
[1766499294403,3.395,2946.3,2945.4,1.17525795]
[1766499294704,1.17525795,2945.6,2945.1,0.00509001]
[1766499294912,1.17525795,2945.6,2945.1,2.42551839]